[Event "ESTCC 50 2019"]
[Site "Mali Losinj"]
[Date "2019.09.22"]
[Round "5.21"]
[White "Olsen, Oystein Leif"]
[Black "Burchardt, Brigitte"]
[Result "0-1"]
[ECO "A07"]
[WhiteElo "1974"]
[BlackElo "2092"]
[Annotator "NA"]
[PlyCount "86"]
[EventDate "2019.09.18"]
[EventType "team-tourn"]
[EventCountry "CRO"]
[SourceTitle "playchess.com"]
[Source "ChessBase"]
[SourceQuality "1"]
[WhiteTeam "Norway"]
[BlackTeam "Germany"]
[WhiteTeamCountry "NOR"]
[BlackTeamCountry "GER"]
[TimeControl "40/5400+30:1800+30"]

1. Nf3 {[%emt 0:01:30]} d5 {[%emt 0:00:30]} 2. g3 {[%emt 0:00:30]} Nf6 {[%emt 0:01:30]} 3. Bg2 {[%emt 0:00:00]} c6 {[%emt 0:02:30]} 4. O-O {[%emt 0:00:00]} h6 {[%emt 0:01:30]} 5. d3 {[%emt 0:01:30]} Bf5 {[%emt 0:06:30]} 6. Nbd2 {[%emt 0:00:30]} Bh7 {[%emt 0:04:30]} 7. Qe1 {[%emt 0:03:30]} Nbd7 {[%emt 0:03:30]} 8. e4 {[%emt 0:00:30]} dxe4 {[%emt 0:05:30]} 9. dxe4 {[%emt 0:05:30]} e5 {[%emt 0:03:30]} 10. Qe2 {[%emt 0:18:30]} Qc7 {[%emt 0:03:30]} 11. a4 {[%emt 0:01:30]} Be7 {[%emt 0:02:30]} 12. a5 {[%emt 0:02:30]} O-O {[%emt 0:02:30]} 13. Nh4 {[%emt 0:01:30]} Rfe8 {[%emt 0:02:30]} 14. Bh3 {[%emt 0:06:30]} Bb4 {[%emt 0:06:30]} 15. Bf5 {[%emt 0:04:30]} Bxa5 {[%emt 0:07:30]} 16. Nc4 {[%emt 0:02:30]} Bb4 {[%emt 0:00:30]} 17. Bxh7+ {[%emt 0:01:30]} Kxh7 {[%emt 0:00:30]} 18. Nf5 {[%emt 0:00:30]} b5 {[%emt 0:00:30]} 19. Nce3 {[%emt 0:03:30]} Bf8 {[%emt 0:09:30]} 20. Ng4 {[%emt 0:02:30]} Ng8 {[%emt 0:00:30]} 21. f4 {[%emt 0:13:30]} g6 {[%emt 0:01:30]} 22. Nh4 {[%emt 0:05:30]} Bd6 {[%emt 0:12:30]} 23. f5 {[%emt 0:04:27]} Rf8 {[%emt 0:07:23]} 24. Qd2 {[%emt 0:05:50]} Bc5+ {[%emt 0:05:25]} 25. Kh1 {[%emt 0:00:30]} Qd6 {[%emt 0:00:30]} 26. Qg2 {[%emt 0:01:54]} Ndf6 {[%emt 0:02:20]} 27. Nxf6+ {[%emt 0:06:56]} Nxf6 {[%emt 0:00:11]} 28. Bxh6 {[%emt 0:01:08]} Kxh6 {[%emt 0:00:23]} 29. Rad1 {[%emt 0:00:03]} Qe7 {[%emt 0:02:00]} 30. Qd2+ {[%emt 0:00:59]} g5 {[%emt 0:01:33]} 31. Qg2 {[%emt 0:01:01]} Kg7 {[%emt 0:01:24]} 32. Nf3 {[%emt 0:02:30]} Nxe4 {[%emt 0:01:18]} 33. Rde1 {[%emt 0:00:09]} Nf2+ {[%emt 0:00:23]} 34. Rxf2 {[%emt 0:00:23]} Bxf2 {[%emt 0:00:04]} 35. Qxf2 {[%emt 0:00:40]} f6 {[%emt 0:00:11]} 36. h4 {[%emt 0:00:09]} Qd7 {[%emt 0:01:42]} 37. g4 {[%emt 0:00:16]} gxh4 {[%emt 0:00:26]} 38. Nxh4 {[%emt 0:00:28]} Rh8 {[%emt 0:00:29]} 39. Kg2 {[%emt 0:00:50]} Qd5+ {[%emt 0:00:21]} 40. Kg3 {[%emt 0:00:27]} Rhd8 {[%emt 0:01:46]} 41. Ng6 {[%emt 0:31:03]} Qd4 {[%emt 0:31:17]} 42. g5 {[%emt 0:00:00]} Qxf2+ {[%emt 0:00:00]} 43. Kxf2 {[%emt 0:00:00]} Rd2+ {[%emt 0:00:00]} 0-1

[Event "ESTCC 50 2019"]
[Site "Mali Losinj"]
[Date "2019.09.22"]
[Round "5.22"]
[White "Wagner-Michel, Annett"]
[Black "Andersen, Per O"]
[Result "1-0"]
[ECO "B41"]
[WhiteElo "2055"]
[BlackElo "1971"]
[Annotator "NA"]
[PlyCount "79"]
[EventDate "2019.09.18"]
[EventType "team-tourn"]
[EventCountry "CRO"]
[SourceTitle "playchess.com"]
[Source "ChessBase"]
[SourceQuality "1"]
[WhiteTeam "Germany"]
[BlackTeam "Norway"]
[WhiteTeamCountry "GER"]
[BlackTeamCountry "NOR"]
[TimeControl "40/5400+30:1800+30"]

1. e4 {[%emt 0:00:30]} c5 {[%emt 0:00:30]} 2. Nf3 {[%emt 0:00:00]} e6 {[%emt 0:00:00]} 3. d4 {[%emt 0:00:00]} cxd4 {[%emt 0:00:00]} 4. Nxd4 {[%emt 0:00:30]} a6 {[%emt 0:00:30]} 5. c4 {[%emt 0:00:30]} g6 {[%emt 0:03:30]} 6. Nc3 {[%emt 0:01:30]} Bg7 {[%emt 0:00:30]} 7. Be3 {[%emt 0:02:30]} Ne7 {[%emt 0:02:30]} 8. Qd2 {[%emt 0:04:30]} d5 {[%emt 0:09:30]} 9. Nf3 {[%emt 0:39:30]} dxe4 {[%emt 0:14:30]} 10. Qxd8+ {[%emt 0:00:30]} Kxd8 {[%emt 0:00:30]} 11. O-O-O+ {[%emt 0:00:30]} Ke8 {[%emt 0:04:30]} 12. Nxe4 {[%emt 0:00:00]} Nbc6 {[%emt 0:05:30]} 13. Nd6+ {[%emt 0:05:00]} Kf8 {[%emt 0:01:30]} 14. Ng5 {[%emt 0:04:30]} h6 {[%emt 0:12:30]} 15. Ngxf7 {[%emt 0:02:30]} Rh7 {[%emt 0:00:30]} 16. Nxc8 {[%emt 0:04:30]} Nxc8 {[%emt 0:07:30]} 17. Nd8 {[%emt 0:06:30]} Nxd8 {[%emt 0:01:30]} 18. Rxd8+ {[%emt 0:00:00]} Ke7 {[%emt 0:00:30]} 19. Rd2 {[%emt 0:00:00]} Be5 {[%emt 0:05:30]} 20. Be2 {[%emt 0:03:30]} Kf6 {[%emt 0:03:30]} 21. Rhd1 {[%emt 0:01:30]} b5 {[%emt 0:03:30]} 22. f4 {[%emt 0:01:30]} Bc7 {[%emt 0:02:30]} 23. Rd7 {[%emt 0:01:30]} Rxd7 {[%emt 0:01:50]} 24. Rxd7 {[%emt 0:00:00]} Bb6 {[%emt 0:01:18]} 25. c5 {[%emt 0:00:00]} Ba5 {[%emt 0:00:57]} 26. g4 {[%emt 0:08:15]} Ne7 {[%emt 0:00:56]} 27. Bd4+ {[%emt 0:00:42]} Kf7 {[%emt 0:00:22]} 28. Be5 {[%emt 0:02:54]} Ke8 {[%emt 0:05:41]} 29. Rb7 {[%emt 0:01:03]} Bb4 {[%emt 0:03:47]} 30. Bd6 {[%emt 0:00:33]} Nc8 {[%emt 0:00:34]} 31. Rh7 {[%emt 0:01:19]} Ra7 {[%emt 0:00:10]} 32. Rh8+ {[%emt 0:01:05]} Kd7 {[%emt 0:00:25]} 33. Rxh6 {[%emt 0:01:21]} Ke8 {[%emt 0:02:47]} 34. Rh8+ {[%emt 0:01:16]} Kd7 {[%emt 0:00:07]} 35. Bd3 {[%emt 0:01:41]} g5 {[%emt 0:01:11]} 36. a3 {[%emt 0:00:46]} Ba5 {[%emt 0:00:23]} 37. Rh7+ {[%emt 0:00:42]} Ke8 {[%emt 0:01:05]} 38. Bg6+ {[%emt 0:00:42]} Kd8 {[%emt 0:00:42]} 39. Rh8+ {[%emt 0:00:15]} Kd7 {[%emt 0:00:24]} 40. Be8+ {[%emt 0:00:06]} 1-0

[Event "ESTCC 50 2019"]
[Site "Mali Losinj"]
[Date "2019.09.22"]
[Round "5.23"]
[White "Ortoft, Kai"]
[Black "Kierzek, Mira"]
[Result "1/2-1/2"]
[ECO "D02"]
[WhiteElo "1957"]
[BlackElo "2015"]
[Annotator "NA"]
[PlyCount "58"]
[EventDate "2019.09.18"]
[EventType "team-tourn"]
[EventCountry "CRO"]
[SourceTitle "playchess.com"]
[Source "ChessBase"]
[SourceQuality "1"]
[WhiteTeam "Norway"]
[BlackTeam "Germany"]
[WhiteTeamCountry "NOR"]
[BlackTeamCountry "GER"]
[TimeControl "40/5400+30:1800+30"]

1. d4 {[%emt 0:00:30]} Nf6 {[%emt 0:00:30]} 2. Nf3 {[%emt 0:00:00]} e6 {[%emt 0:00:30]} 3. g3 {[%emt 0:01:00]} d5 {[%emt 0:00:30]} 4. Bg2 {[%emt 0:01:30]} c5 {[%emt 0:02:30]} 5. O-O {[%emt 0:00:30]} Nc6 {[%emt 0:01:30]} 6. b3 {[%emt 0:06:30]} Be7 {[%emt 0:02:30]} 7. Bb2 {[%emt 0:01:30]} O-O {[%emt 0:00:30]} 8. Nbd2 {[%emt 0:00:30]} b6 {[%emt 0:02:30]} 9. dxc5 {[%emt 0:01:30]} Bxc5 {[%emt 0:05:30]} 10. c4 {[%emt 0:00:30]} Bb7 {[%emt 0:01:30]} 11. cxd5 {[%emt 0:06:30]} exd5 {[%emt 0:02:30]} 12. a3 {[%emt 0:01:30]} a5 {[%emt 0:03:30]} 13. Ne1 {[%emt 0:04:30]} Bd4 {[%emt 0:13:30]} 14. Bxd4 {[%emt 0:08:30]} Nxd4 {[%emt 0:00:00]} 15. Nb1 {[%emt 0:00:30]} Nb5 {[%emt 0:04:00]} 16. a4 {[%emt 0:04:30]} Nd6 {[%emt 0:00:30]} 17. Nc3 {[%emt 0:07:30]} Nde4 {[%emt 0:00:30]} 18. Rc1 {[%emt 0:06:30]} Rc8 {[%emt 0:00:30]} 19. Qd4 {[%emt 0:00:30]} Re8 {[%emt 0:07:30]} 20. e3 {[%emt 0:10:30]} h6 {[%emt 0:15:30]} 21. Nf3 {[%emt 0:03:30]} Nxc3 {[%emt 0:09:30]} 22. Rxc3 {[%emt 0:00:30]} Rxc3 {[%emt 0:00:30]} 23. Qxc3 {[%emt 0:00:00]} Ne4 {[%emt 0:00:30]} 24. Qb2 {[%emt 0:02:00]} Qe7 {[%emt 0:02:30]} 25. Rc1 {[%emt 0:05:30]} Nc5 {[%emt 0:03:30]} 26. Rd1 {[%emt 0:00:30]} Ne4 {[%emt 0:03:30]} 27. Rc1 {[%emt 0:06:31]} Nc5 {[%emt 0:02:48]} 28. Rd1 {[%emt 0:02:47]} Ne4 {[%emt 0:02:22]} 29. Rc1 {[%emt 0:05:42]} Nc5 {[%emt 0:01:50]} 1/2-1/2

[Event "ESTCC 50 2019"]
[Site "Mali Losinj"]
[Date "2019.09.22"]
[Round "5.24"]
[White "Leib, Britta"]
[Black "Jenssen, Ove S"]
[Result "1-0"]
[ECO "D12"]
[WhiteElo "1883"]
[BlackElo "1827"]
[Annotator "NA"]
[PlyCount "85"]
[EventDate "2019.09.18"]
[EventType "team-tourn"]
[EventCountry "CRO"]
[SourceTitle "playchess.com"]
[Source "ChessBase"]
[SourceQuality "1"]
[WhiteTeam "Germany"]
[BlackTeam "Norway"]
[WhiteTeamCountry "GER"]
[BlackTeamCountry "NOR"]
[TimeControl "40/5400+30:1800+30"]

1. d4 {[%emt 0:00:30]} d5 {[%emt 0:00:30]} 2. Nf3 {[%emt 0:00:00]} Nf6 {[%emt 0:00:30]} 3. e3 {[%emt 0:00:00]} Bf5 {[%emt 0:00:30]} 4. c4 {[%emt 0:01:30]} e6 {[%emt 0:00:30]} 5. Nc3 {[%emt 0:01:30]} c6 {[%emt 0:00:30]} 6. Be2 {[%emt 0:05:30]} Bd6 {[%emt 0:02:30]} 7. O-O {[%emt 0:03:30]} h6 {[%emt 0:01:30]} 8. b3 {[%emt 0:05:30]} Nbd7 {[%emt 0:02:30]} 9. Bb2 {[%emt 0:02:30]} Rc8 {[%emt 0:02:30]} 10. h3 {[%emt 0:07:30]} Bb8 {[%emt 0:04:30]} 11. Re1 {[%emt 0:11:30]} Qc7 {[%emt 0:02:30]} 12. Rc1 {[%emt 0:13:30]} a6 {[%emt 0:03:30]} 13. a4 {[%emt 0:12:30]} g5 {[%emt 0:02:30]} 14. Bf1 {[%emt 0:05:30]} g4 {[%emt 0:01:30]} 15. hxg4 {[%emt 0:04:30]} Bxg4 {[%emt 0:01:30]} 16. g3 {[%emt 0:01:30]} Ne4 {[%emt 0:04:30]} 17. Qe2 {[%emt 0:09:34]} Rg8 {[%emt 0:02:30]} 18. Bg2 {[%emt 0:02:46]} Nxg3 {[%emt 0:03:30]} 19. fxg3 {[%emt 0:03:29]} Qxg3 {[%emt 0:00:30]} 20. Rf1 {[%emt 0:02:57]} Bh5 {[%emt 0:16:30]} 21. cxd5 {[%emt 0:00:44]} Qh3 {[%emt 0:02:30]} 22. dxe6 {[%emt 0:01:33]} fxe6 {[%emt 0:00:30]} 23. e4 {[%emt 0:00:34]} Bf4 {[%emt 0:06:30]} 24. Rc2 {[%emt 0:00:32]} Ke7 {[%emt 0:14:30]} 25. Bc1 {[%emt 0:00:44]} Bh2+ {[%emt 0:01:30]} 26. Kh1 {[%emt 0:00:25]} Qg3 {[%emt 0:00:30]} 27. Qf2 {[%emt 0:01:26]} Qxf2 {[%emt 0:05:56]} 28. Rfxf2 {[%emt 0:00:01]} Bg3 {[%emt 0:00:00]} 29. Rf1 {[%emt 0:00:00]} Rcf8 {[%emt 0:03:37]} 30. Nh2 {[%emt 0:00:39]} Rxf1+ {[%emt 0:01:41]} 31. Nxf1 {[%emt 0:00:50]} Bh4 {[%emt 0:00:42]} 32. Nh2 {[%emt 0:00:01]} Rg3 {[%emt 0:01:24]} 33. Bxh6 {[%emt 0:01:50]} Rd3 {[%emt 0:01:17]} 34. d5 {[%emt 0:00:38]} Be1 {[%emt 0:00:42]} 35. Ne2 {[%emt 0:00:34]} cxd5 {[%emt 0:02:17]} 36. exd5 {[%emt 0:00:19]} e5 {[%emt 0:00:38]} 37. d6+ {[%emt 0:00:22]} Kxd6 {[%emt 0:00:39]} 38. Bxb7 {[%emt 0:00:05]} Nc5 {[%emt 0:00:42]} 39. Bf8+ {[%emt 0:00:49]} Kc7 {[%emt 0:00:27]} 40. Be4 {[%emt 0:00:24]} Re3 {[%emt 0:01:50]} 41. Rxc5+ {[%emt 0:30:26]} Kb6 {[%emt 0:00:38]} 42. Rxe5 {[%emt 0:00:00]} Bxe2 {[%emt 0:00:30]} 43. Bc5+ {[%emt 0:00:00]} 1-0

[Event "ESTCC 50 2019"]
[Site "Mali Losinj"]
[Date "2019.09.23"]
[Round "6.2"]
[White "Dusper, Hrvoje"]
[Black "Zelcic, Robert"]
[Result "1/2-1/2"]
[ECO "A22"]
[WhiteElo "2221"]
[BlackElo "2503"]
[Annotator "ChessBase"]
[PlyCount "117"]
[EventDate "2019.09.18"]
[EventType "team-tourn"]
[EventCountry "CRO"]
[SourceTitle "playchess.com"]
[Source "ChessBase"]
[SourceQuality "1"]
[WhiteTeam "Croatia"]
[BlackTeam "Croatia"]
[WhiteTeamCountry "CRO"]
[BlackTeamCountry "CRO"]
[TimeControl "40/5400+30:1800+30"]

1. c4 {[%emt 0:00:30]} e5 {[%emt 0:01:30]} 2. Nc3 {[%emt 0:00:00]} Nf6 {[%emt 0:00:30]} 3. g3 {[%emt 0:00:00]} d5 {[%emt 0:02:30]} 4. cxd5 {[%emt 0:00:30]} Nxd5 {[%emt 0:00:30]} 5. Bg2 {[%emt 0:00:00]} Ne7 {[%emt 0:03:30]} 6. e3 {[%emt 0:04:00]} Nbc6 {[%emt 0:02:30]} 7. Nge2 {[%emt 0:00:30]} g6 {[%emt 0:02:30]} 8. O-O {[%emt 0:00:30]} Bg7 {[%emt 0:00:30]} 9. f4 {[%emt 0:00:30]} O-O {[%emt 0:00:30]} 10. fxe5 {[%emt 0:01:30]} Nxe5 {[%emt 0:00:30]} 11. d4 {[%emt 0:02:30]} Nc4 {[%emt 0:00:30]} 12. b3 {[%emt 0:01:30]} Nd6 {[%emt 0:01:30]} 13. e4 {[%emt 0:03:30]} Bg4 {[%emt 0:08:30]} 14. e5 {[%emt 0:01:30]} Ndf5 {[%emt 0:00:30]} 15. Bxb7 {[%emt 0:01:30]} c5 {[%emt 0:00:30]} 16. Rf4 {[%emt 0:13:30]} Bxe2 {[%emt 0:04:30]} 17. Nxe2 {[%emt 0:03:30]} Rb8 {[%emt 0:00:30]} 18. Be4 {[%emt 0:04:30]} Nxd4 {[%emt 0:01:30]} 19. Bb2 {[%emt 0:05:30]} Bxe5 {[%emt 0:00:30]} 20. Rf2 {[%emt 0:00:30]} Rb4 {[%emt 0:04:30]} 21. Nxd4 {[%emt 0:02:30]} Bxd4 {[%emt 0:00:30]} 22. Bxd4 {[%emt 0:00:30]} Rxd4 {[%emt 0:00:30]} 23. Qc2 {[%emt 0:00:30]} Qd6 {[%emt 0:01:30]} 24. Bf3 {[%emt 0:02:30]} h5 {[%emt 0:01:30]} 25. Rc1 {[%emt 0:01:30]} Rc8 {[%emt 0:00:30]} 26. Be2 {[%emt 0:00:30]} h4 {[%emt 0:21:30]} 27. Bc4 {[%emt 0:17:30]} Rf8 {[%emt 0:00:00]} 28. gxh4 {[%emt 0:02:30]} Rg4+ {[%emt 0:01:00]} 29. Rg2 {[%emt 0:01:30]} Qd4+ {[%emt 0:03:30]} 30. Qf2 {[%emt 0:05:30]} Qxf2+ {[%emt 0:01:30]} 31. Kxf2 {[%emt 0:00:30]} Rd4 {[%emt 0:04:30]} 32. h5 {[%emt 0:03:30]} Rd2+ {[%emt 0:00:30]} 33. Kg1 {[%emt 0:02:53]} Rxg2+ {[%emt 0:00:30]} 34. Kxg2 {[%emt 0:00:08]} gxh5 {[%emt 0:00:00]} 35. Be2 {[%emt 0:00:19]} Rd8 {[%emt 0:01:00]} 36. Rxc5 {[%emt 0:04:06]} Rd2 {[%emt 0:00:30]} 37. Kf1 {[%emt 0:00:00]} Rxa2 {[%emt 0:00:30]} 38. Rxh5 {[%emt 0:00:08]} Kg7 {[%emt 0:02:30]} 39. Rc5 {[%emt 0:01:26]} f5 {[%emt 0:00:30]} 40. h4 {[%emt 0:01:57]} Kf6 {[%emt 0:00:30]} 41. h5 {[%emt 0:31:10]} Kg5 {[%emt 0:31:30]} 42. Rc7 {[%emt 0:01:03]} Nd5 {[%emt 0:00:30]} 43. Rg7+ {[%emt 0:01:01]} Kf4 {[%emt 0:00:30]} 44. h6 {[%emt 0:01:30]} Ra1+ {[%emt 0:04:30]} 45. Kg2 {[%emt 0:07:38]} Ra2 {[%emt 0:00:00]} 46. Kf2 {[%emt 0:00:00]} Nc3 {[%emt 0:00:00]} 47. h7 {[%emt 0:00:00]} Rxe2+ {[%emt 0:00:00]} 48. Kg1 {[%emt 0:00:00]} Re1+ {[%emt 0:00:00]} 49. Kh2 {[%emt 0:00:00]} Re2+ {[%emt 0:00:00]} 50. Rg2 {[%emt 0:00:00]} Re8 {[%emt 0:00:00]} 51. Rg8 {[%emt 0:00:00]} Re2+ {[%emt 0:00:00]} 52. Kg1 {[%emt 0:00:00]} Re1+ {[%emt 0:00:00]} 53. Kg2 {[%emt 0:00:00]} Re2+ {[%emt 0:00:00]} 54. Kf1 {[%emt 0:00:00]} Rh2 {[%emt 0:00:00]} 55. h8=Q {[%emt 0:00:00]} Rxh8 {[%emt 0:00:00]} 56. Rxh8 {[%emt 0:00:00]} Ke3 {[%emt 0:00:00]} 57. Ke1 {[%emt 0:00:00]} Kd3 {[%emt 0:03:30]} 58. Rh3+ {[%emt 0:00:00]} Kc2 {[%emt 0:01:30]} 59. Rf3 {[%emt 0:00:00]} 1/2-1/2

[Event "ESTCC 50 2019"]
[Site "Mali Losinj"]
[Date "2019.09.23"]
[Round "6.5"]
[White "Blatny, Pavel"]
[Black "Burmakin, Vladimir"]
[Result "0-1"]
[ECO "A03"]
[WhiteElo "2325"]
[BlackElo "2496"]
[Annotator "RC"]
[PlyCount "86"]
[EventDate "2019.09.18"]
[EventType "team-tourn"]
[EventCountry "CRO"]
[SourceTitle "playchess.com"]
[Source "ChessBase"]
[SourceQuality "1"]
[WhiteTeam "Czech Republic"]
[BlackTeam "Russia"]
[WhiteTeamCountry "CZE"]
[BlackTeamCountry "RUS"]
[TimeControl "40/5400+30:1800+30"]

1. e3 {[%emt 0:00:30]} d5 {[%emt 0:00:30]} 2. f4 {[%emt 0:00:30]} Nf6 {[%emt 0:00:30]} 3. b3 {[%emt 0:00:30]} Bf5 {[%emt 0:02:30]} 4. Bb2 {[%emt 0:00:00]} e6 {[%emt 0:00:30]} 5. Nf3 {[%emt 0:00:00]} Be7 {[%emt 0:00:00]} 6. Be2 {[%emt 0:00:30]} h6 {[%emt 0:00:00]} 7. Ne5 {[%emt 0:00:30]} Nbd7 {[%emt 0:01:30]} 8. Nxd7 {[%emt 0:01:30]} Nxd7 {[%emt 0:02:30]} 9. O-O {[%emt 0:00:30]} Bf6 {[%emt 0:00:30]} 10. d4 {[%emt 0:00:30]} c5 {[%emt 0:01:30]} 11. c3 {[%emt 0:00:30]} O-O {[%emt 0:04:30]} 12. Nd2 {[%emt 0:00:30]} Rc8 {[%emt 0:00:30]} 13. Rf2 {[%emt 0:05:30]} cxd4 {[%emt 0:07:30]} 14. exd4 {[%emt 0:00:30]} Be7 {[%emt 0:00:30]} 15. Nf1 {[%emt 0:05:30]} Nf6 {[%emt 0:00:00]} 16. Ng3 {[%emt 0:00:30]} Ne4 {[%emt 0:11:00]} 17. Nxf5 {[%emt 0:02:30]} exf5 {[%emt 0:00:30]} 18. Rf3 {[%emt 0:00:30]} Qa5 {[%emt 0:01:30]} 19. Bf1 {[%emt 0:13:30]} Rc7 {[%emt 0:01:30]} 20. b4 {[%emt 0:10:30]} Qb6 {[%emt 0:00:30]} 21. Rc1 {[%emt 0:00:30]} Rfc8 {[%emt 0:01:30]} 22. a3 {[%emt 0:03:30]} a5 {[%emt 0:03:30]} 23. b5 {[%emt 0:01:30]} Nd6 {[%emt 0:19:30]} 24. a4 {[%emt 0:00:00]} Nc4 {[%emt 0:00:00]} 25. Bxc4 {[%emt 0:00:00]} Rxc4 {[%emt 0:00:00]} 26. Qb3 {[%emt 0:01:30]} Qe6 {[%emt 0:13:30]} 27. Rcf1 {[%emt 0:01:30]} Bd6 {[%emt 0:00:30]} 28. Bc1 {[%emt 0:01:30]} Re8 {[%emt 0:01:30]} 29. Re3 {[%emt 0:00:00]} Qc8 {[%emt 0:00:00]} 30. Rxe8+ {[%emt 0:02:00]} Qxe8 {[%emt 0:00:00]} 31. Kf2 {[%emt 0:00:00]} Qe7 {[%emt 0:07:30]} 32. g3 {[%emt 0:01:00]} g5 {[%emt 0:00:30]} 33. Re1 {[%emt 0:01:30]} Qf6 {[%emt 0:00:00]} 34. fxg5 {[%emt 0:40:31]} hxg5 {[%emt 0:00:00]} 35. Re8+ {[%emt 0:02:20]} Kg7 {[%emt 0:01:30]} 36. Bd2 {[%emt 0:04:43]} f4 {[%emt 0:00:49]} 37. Kg2 {[%emt 0:00:40]} f3+ {[%emt 0:12:34]} 38. Kf2 {[%emt 0:00:01]} Qf5 {[%emt 0:00:00]} 39. Qd1 {[%emt 0:01:01]} g4 {[%emt 0:00:10]} 40. h4 {[%emt 0:00:43]} Rxa4 {[%emt 0:00:00]} 41. Qe1 {[%emt 0:20:26]} Ra2 {[%emt 0:08:27]} 42. Qe3 {[%emt 0:00:07]} Qf6 {[%emt 0:09:30]} 43. h5 {[%emt 0:01:16]} Bf4 {[%emt 0:02:30]} 0-1

[Event "ESTCC 50 2019"]
[Site "Mali Losinj"]
[Date "2019.09.23"]
[Round "6.6"]
[White "Gleizerov, Evgeny"]
[Black "Vokac, Marek"]
[Result "1-0"]
[ECO "E97"]
[WhiteElo "2503"]
[BlackElo "2332"]
[Annotator "ChessBase"]
[PlyCount "107"]
[EventDate "2019.09.18"]
[EventType "team-tourn"]
[EventCountry "CRO"]
[SourceTitle "playchess.com"]
[Source "ChessBase"]
[SourceQuality "1"]
[WhiteTeam "Russia"]
[BlackTeam "Czech Republic"]
[WhiteTeamCountry "RUS"]
[BlackTeamCountry "CZE"]
[TimeControl "40/5400+30:1800+30"]

1. d4 {[%emt 0:00:30]} g6 {[%emt 0:00:30]} 2. c4 {[%emt 0:00:00]} Bg7 {[%emt 0:00:00]} 3. Nf3 {[%emt 0:00:00]} d6 {[%emt 0:00:00]} 4. Nc3 {[%emt 0:00:00]} Nf6 {[%emt 0:00:30]} 5. e4 {[%emt 0:00:00]} O-O {[%emt 0:00:30]} 6. Be2 {[%emt 0:00:00]} e5 {[%emt 0:00:30]} 7. O-O {[%emt 0:00:00]} Nc6 {[%emt 0:00:30]} 8. d5 {[%emt 0:00:30]} Ne7 {[%emt 0:00:00]} 9. Nd2 {[%emt 0:00:00]} Ne8 {[%emt 0:01:00]} 10. b4 {[%emt 0:00:00]} f5 {[%emt 0:00:30]} 11. c5 {[%emt 0:00:30]} Nf6 {[%emt 0:00:00]} 12. f3 {[%emt 0:00:00]} f4 {[%emt 0:00:00]} 13. Nc4 {[%emt 0:00:00]} g5 {[%emt 0:00:30]} 14. a4 {[%emt 0:01:30]} Ng6 {[%emt 0:00:30]} 15. cxd6 {[%emt 0:00:30]} cxd6 {[%emt 0:00:00]} 16. Nb5 {[%emt 0:00:00]} Ne8 {[%emt 0:00:00]} 17. Bd2 {[%emt 0:00:00]} Rf7 {[%emt 0:00:30]} 18. Be1 {[%emt 0:00:00]} Bd7 {[%emt 0:00:00]} 19. Bf2 {[%emt 0:00:00]} Qb8 {[%emt 0:00:00]} 20. g4 {[%emt 0:13:30]} Bf6 {[%emt 0:03:30]} 21. Kh1 {[%emt 0:19:30]} Bd8 {[%emt 0:03:30]} 22. Rg1 {[%emt 0:00:30]} Rg7 {[%emt 0:04:30]} 23. h3 {[%emt 0:03:30]} Nh8 {[%emt 0:05:30]} 24. Rg2 {[%emt 0:00:30]} Nf7 {[%emt 0:10:30]} 25. Qg1 {[%emt 0:12:30]} a6 {[%emt 0:00:00]} 26. Nc3 {[%emt 0:02:30]} Nf6 {[%emt 0:02:00]} 27. a5 {[%emt 0:03:30]} h5 {[%emt 0:00:00]} 28. Na4 {[%emt 0:04:30]} hxg4 {[%emt 0:03:00]} 29. hxg4 {[%emt 0:00:30]} Bb5 {[%emt 0:03:30]} 30. Qf1 {[%emt 0:04:30]} Rh7+ {[%emt 0:03:30]} 31. Rh2 {[%emt 0:02:30]} Rxh2+ {[%emt 0:00:00]} 32. Kxh2 {[%emt 0:00:00]} Bxc4 {[%emt 0:00:00]} 33. Bxc4 {[%emt 0:00:00]} Qc8 {[%emt 0:00:30]} 34. Be2 {[%emt 0:12:30]} Qd7 {[%emt 0:05:30]} 35. Nb2 {[%emt 0:01:30]} Rc8 {[%emt 0:09:30]} 36. Rc1 {[%emt 0:00:30]} Rxc1 {[%emt 0:02:30]} 37. Qxc1 {[%emt 0:00:30]} Nh6 {[%emt 0:00:30]} 38. Kg2 {[%emt 0:04:56]} Nhxg4 {[%emt 0:15:30]} 39. fxg4 {[%emt 0:00:05]} Nxg4 {[%emt 0:00:30]} 40. Qh1 {[%emt 0:02:05]} Nf6 {[%emt 0:07:30]} 41. Qh6 {[%emt 0:30:42]} g4 {[%emt 0:29:30]} 42. Qg6+ {[%emt 0:01:48]} Kf8 {[%emt 0:00:30]} 43. Bd3 {[%emt 0:04:00]} Ne8 {[%emt 0:16:42]} 44. Nc4 {[%emt 0:05:57]} g3 {[%emt 0:00:00]} 45. Bb6 {[%emt 0:00:00]} Bxb6 {[%emt 0:00:00]} 46. axb6 {[%emt 0:00:00]} Qa4 {[%emt 0:04:04]} 47. Nxd6 {[%emt 0:00:00]} Qa2+ {[%emt 0:00:03]} 48. Kf3 {[%emt 0:00:00]} Qf2+ {[%emt 0:00:21]} 49. Kg4 {[%emt 0:00:00]} Nxd6 {[%emt 0:00:09]} 50. Qxd6+ {[%emt 0:00:00]} Kg8 {[%emt 0:01:15]} 51. Qb8+ {[%emt 0:00:00]} Kh7 {[%emt 0:00:58]} 52. Qxb7+ {[%emt 0:00:00]} Kh6 {[%emt 0:00:07]} 53. Qc6+ {[%emt 0:00:00]} Kh7 {[%emt 0:00:04]} 54. Qd7+ {[%emt 0:00:00]} 1-0